[Event "Titled Tuesday Blitz August 22 Late 2023"]
[White "Pinto, Daniel"]
[Black "Vlassov, Nikolai"]
[WhiteFideId "3303144"]
[BlackFideId "4103360"]
[WhiteElo "2452"]
[BlackElo "2614"]
[Result "1-0"]
[Round "7"]
[TimeControl "180+1"]
[Date "2023.08.22"]
[WhiteClock "0:00:03"]
[BlackClock "0:00:01"]
[Board "66"]

1. e4 {[%clk 0:03:00]}  Nc6 {[%clk 0:02:59]} 2. Nc3 {[%clk 0:02:56]}  Nf6 {[%clk 0:02:58]} 3. Nf3 {[%clk 0:02:56]}  d5 {[%clk 0:02:58]} 4. exd5 {[%clk 0:02:56]}  Nxd5 {[%clk 0:02:59]} 5. d4 {[%clk 0:02:55]}  Bg4 {[%clk 0:02:57]} 6. Be2 {[%clk 0:02:54]}  e6 {[%clk 0:02:56]} 7. Ne4 {[%clk 0:02:43]}  Be7 {[%clk 0:02:54]} 8. O-O {[%clk 0:02:42]}  O-O {[%clk 0:02:54]} 9. c3 {[%clk 0:02:42]}  Re8 {[%clk 0:02:47]} 10. Re1 {[%clk 0:02:36]}  Bf8 {[%clk 0:02:46]} 11. Bg5 {[%clk 0:02:10]}  Qd7 {[%clk 0:02:42]} 12. h3 {[%clk 0:02:09]}  Bf5 {[%clk 0:02:40]} 13. Ng3 {[%clk 0:02:09]}  Bg6 {[%clk 0:02:40]} 14. Bb5 {[%clk 0:02:05]}  Bd6 {[%clk 0:02:33]} 15. c4 {[%clk 0:01:56]}  Bxg3 {[%clk 0:02:02]} 16. fxg3 {[%clk 0:01:56]}  Nb6 {[%clk 0:01:58]} 17. c5 {[%clk 0:01:25]}  Nd5 {[%clk 0:01:50]} 18. Ne5 {[%clk 0:01:23]}  Qc8 {[%clk 0:01:37]} 19. Nxc6 {[%clk 0:01:23]}  bxc6 {[%clk 0:01:38]} 20. Bxc6 {[%clk 0:01:24]}  Rb8 {[%clk 0:01:38]} 21. Bxe8 {[%clk 0:01:23]}  Qxe8 {[%clk 0:01:38]} 22. b3 {[%clk 0:01:08]}  h6 {[%clk 0:01:38]} 23. Bd2 {[%clk 0:01:05]}  Qe7 {[%clk 0:01:35]} 24. Qf3 {[%clk 0:01:00]}  c6 {[%clk 0:01:31]} 25. g4 {[%clk 0:00:51]}  Rb5 {[%clk 0:01:27]} 26. Re2 {[%clk 0:00:38]}  a5 {[%clk 0:01:26]} 27. Rae1 {[%clk 0:00:35]}  Qa7 {[%clk 0:01:21]} 28. h4 {[%clk 0:00:29]}  a4 {[%clk 0:01:20]} 29. b4 {[%clk 0:00:24]}  Nxb4 {[%clk 0:01:08]} 30. Bxb4 {[%clk 0:00:23]}  Rxb4 {[%clk 0:01:08]} 31. Qxc6 {[%clk 0:00:21]}  Rxd4 {[%clk 0:01:08]} 32. Qb6 {[%clk 0:00:12]}  Qxb6 {[%clk 0:00:57]} 33. cxb6 {[%clk 0:00:11]}  Rb4 {[%clk 0:00:58]} 34. h5 {[%clk 0:00:11]}  Bb1 {[%clk 0:00:44]} 35. Rd2 {[%clk 0:00:10]}  Rxb6 {[%clk 0:00:44]} 36. Rd8+ {[%clk 0:00:10]}  Kh7 {[%clk 0:00:44]} 37. Ra8 {[%clk 0:00:08]}  Bc2 {[%clk 0:00:43]} 38. Re2 {[%clk 0:00:06]}  Bd3 {[%clk 0:00:31]} 39. Rf2 {[%clk 0:00:06]}  Rb4 {[%clk 0:00:24]} 40. g5 {[%clk 0:00:06]}  hxg5 {[%clk 0:00:24]} 41. Rxf7 {[%clk 0:00:06]}  g4 {[%clk 0:00:20]} 42. Rff8 {[%clk 0:00:05]}  Kh6 {[%clk 0:00:20]} 43. Ra5 {[%clk 0:00:05]}  Bf5 {[%clk 0:00:18]} 44. Rh8+ {[%clk 0:00:04]}  Kg5 {[%clk 0:00:18]} 45. g3 {[%clk 0:00:05]}  Rb1+ {[%clk 0:00:15]} 46. Kf2 {[%clk 0:00:05]}  Rb2+ {[%clk 0:00:16]} 47. Ke3 {[%clk 0:00:06]}  Rxa2 {[%clk 0:00:17]} 48. Ra7 {[%clk 0:00:06]}  Ra3+ {[%clk 0:00:17]} 49. Kf2 {[%clk 0:00:02]}  Rf3+ {[%clk 0:00:16]} 50. Kg2 {[%clk 0:00:02]}  Kf6 {[%clk 0:00:15]} 51. h6 {[%clk 0:00:02]}  gxh6 {[%clk 0:00:15]} 52. Rxh6+ {[%clk 0:00:03]}  Ke5 {[%clk 0:00:16]} 53. Rxa4 {[%clk 0:00:04]}  Be4 {[%clk 0:00:14]} 54. Ra5+ {[%clk 0:00:03]}  Bd5 {[%clk 0:00:14]} 55. Kh2 {[%clk 0:00:04]}  Rf2+ {[%clk 0:00:14]} 56. Kg1 {[%clk 0:00:04]}  Rg2+ {[%clk 0:00:15]} 57. Kf1 {[%clk 0:00:05]}  Rxg3 {[%clk 0:00:16]} 58. Rh5+ {[%clk 0:00:06]}  Kd4 {[%clk 0:00:14]} 59. Ra4+ {[%clk 0:00:05]}  Bc4+ {[%clk 0:00:14]} 60. Kf2 {[%clk 0:00:05]}  Rf3+ {[%clk 0:00:14]} 61. Kg2 {[%clk 0:00:06]}  Rc3 {[%clk 0:00:13]} 62. Rg5 {[%clk 0:00:06]}  Kd3 {[%clk 0:00:11]} 63. Rxg4 {[%clk 0:00:06]}  Bd5+ {[%clk 0:00:11]} 64. Kg3 {[%clk 0:00:06]}  Kd2+ {[%clk 0:00:11]} 65. Kf4 {[%clk 0:00:07]}  Rf3+ {[%clk 0:00:11]} 66. Ke5 {[%clk 0:00:07]}  Re3+ {[%clk 0:00:12]} 67. Kd4 {[%clk 0:00:07]}  Rd3+ {[%clk 0:00:12]} 68. Kc5 {[%clk 0:00:07]}  Rc3+ {[%clk 0:00:12]} 69. Kd6 {[%clk 0:00:08]}  Rd3 {[%clk 0:00:10]} 70. Ke7 {[%clk 0:00:06]}  Kc2 {[%clk 0:00:07]} 71. Rab4 {[%clk 0:00:03]}  Kc3 {[%clk 0:00:07]} 72. Rh4 {[%clk 0:00:03]}  Rd1 {[%clk 0:00:07]} 73. Rb6 {[%clk 0:00:03]}  Rg1 {[%clk 0:00:07]} 74. Kd6 {[%clk 0:00:03]}  Rg6 {[%clk 0:00:06]} 75. Rh3+ {[%clk 0:00:03]}  Kc4 {[%clk 0:00:06]} 76. Rh4+ {[%clk 0:00:03]}  Kc3 {[%clk 0:00:06]} 77. Kc5 {[%clk 0:00:03]}  Rg5 {[%clk 0:00:05]} 78. Rh3+ {[%clk 0:00:03]}  Kc2 {[%clk 0:00:05]} 79. Kd4 {[%clk 0:00:03]}  Rg4+ {[%clk 0:00:05]} 80. Kc5 {[%clk 0:00:03]}  Rc4+ {[%clk 0:00:04]} 81. Kd6 {[%clk 0:00:04]}  Rc3 {[%clk 0:00:04]} 82. Rh2+ {[%clk 0:00:03]}  Kd3 {[%clk 0:00:05]} 83. Rbb2 {[%clk 0:00:02]}  Kc4 {[%clk 0:00:04]} 84. Rh4+ {[%clk 0:00:02]}  Kd3 {[%clk 0:00:05]} 85. Rhh2 {[%clk 0:00:02]}  Kc4 {[%clk 0:00:05]} 86. Rbd2 {[%clk 0:00:03]}  Ra3 {[%clk 0:00:05]} 87. Rh4+ {[%clk 0:00:03]}  Kb5 {[%clk 0:00:05]} 88. Rb2+ {[%clk 0:00:03]}  Rb3 {[%clk 0:00:05]} 89. Rxb3+ {[%clk 0:00:03]}  Bxb3 {[%clk 0:00:05]} 90. Rd4 {[%clk 0:00:03]}  Bd5 {[%clk 0:00:05]} 91. Rh4 {[%clk 0:00:03]}  Kb6 {[%clk 0:00:04]} 92. Rb4+ {[%clk 0:00:03]}  Ka5 {[%clk 0:00:05]} 93. Kc5 {[%clk 0:00:03]}  Ka6 {[%clk 0:00:05]} 94. Ra4+ {[%clk 0:00:04]}  Kb7 {[%clk 0:00:05]} 95. Ra5 {[%clk 0:00:04]}  Kb8 {[%clk 0:00:06]} 96. Kb6 {[%clk 0:00:04]}  Kc8 {[%clk 0:00:06]} 97. Ra7 {[%clk 0:00:04]}  Kd8 {[%clk 0:00:06]} 98. Kc5 {[%clk 0:00:05]}  Kc8 {[%clk 0:00:06]} 99. Kd6 {[%clk 0:00:05]}  Kb8 {[%clk 0:00:07]} 100. Rc7 {[%clk 0:00:05]}  Ka8 {[%clk 0:00:07]} 101. Kc5 {[%clk 0:00:05]}  Kb8 {[%clk 0:00:07]} 102. Kb6 {[%clk 0:00:05]}  Be4 {[%clk 0:00:07]} 103. Re7 {[%clk 0:00:05]}  Kc8 {[%clk 0:00:05]} 104. Rxe6 {[%clk 0:00:06]}  Bd5 {[%clk 0:00:06]} 105. Rd6 {[%clk 0:00:06]}  Be4 {[%clk 0:00:06]} 106. Kc5 {[%clk 0:00:07]}  Kc7 {[%clk 0:00:06]} 107. Re6 {[%clk 0:00:07]}  Bf3 {[%clk 0:00:06]} 108. Re7+ {[%clk 0:00:07]}  Kd8 {[%clk 0:00:05]} 109. Kd6 {[%clk 0:00:08]}  Kc8 {[%clk 0:00:06]} 110. Rf7 {[%clk 0:00:08]}  Bg2 {[%clk 0:00:06]} 111. Rc7+ {[%clk 0:00:08]}  Kb8 {[%clk 0:00:05]} 112. Rg7 {[%clk 0:00:08]}  Bf3 {[%clk 0:00:05]} 113. Rf7 {[%clk 0:00:08]}  Bg2 {[%clk 0:00:05]} 114. Rf2 {[%clk 0:00:03]}  Be4 {[%clk 0:00:05]} 115. Rb2+ {[%clk 0:00:03]}  Kc8 {[%clk 0:00:05]} 116. Rb6 {[%clk 0:00:03]}  Bf3 {[%clk 0:00:05]} 117. Rb5 {[%clk 0:00:03]}  Bg2 {[%clk 0:00:05]} 118. Rc5+ {[%clk 0:00:03]}  Kb7 {[%clk 0:00:05]} 119. Rb5+ {[%clk 0:00:03]}  Ka6 {[%clk 0:00:05]} 120. Rb2 {[%clk 0:00:02]}  Ka5 {[%clk 0:00:06]} 121. Kc5 {[%clk 0:00:03]}  Ka4 {[%clk 0:00:03]} 122. Rxg2 {[%clk 0:00:03]}  Kb3 {[%clk 0:00:01]} 123. Rg3+ {[%clk 0:00:03]} 1-0


[Site "https://www.chess.com"]

[Event "Titled Tuesday Blitz August 22 Late 2023"]
[White "ExchangeAB"]
[Black "Ganiev, Roman"]
[BlackFideId "4131452"]
[WhiteElo "2443"]
[BlackElo "2576"]
[Result "1/2-1/2"]
[Round "7"]
[TimeControl "180+1"]
[Date "2023.08.22"]
[WhiteClock "0:00:25"]
[BlackClock "0:00:11"]
[Board "68"]

1. d4 {[%clk 0:03:00]}  Nf6 {[%clk 0:02:53]} 2. Nc3 {[%clk 0:03:00]}  d5 {[%clk 0:02:53]} 3. Bf4 {[%clk 0:03:00]}  a6 {[%clk 0:02:51]} 4. e3 {[%clk 0:03:00]}  e6 {[%clk 0:02:47]} 5. Nf3 {[%clk 0:03:00]}  c5 {[%clk 0:02:47]} 6. dxc5 {[%clk 0:02:59]}  Bxc5 {[%clk 0:02:46]} 7. Bd3 {[%clk 0:03:00]}  Nc6 {[%clk 0:02:44]} 8. e4 {[%clk 0:03:00]}  Be7 {[%clk 0:02:34]} 9. O-O {[%clk 0:02:59]}  O-O {[%clk 0:02:34]} 10. exd5 {[%clk 0:02:58]}  exd5 {[%clk 0:02:33]} 11. h3 {[%clk 0:02:52]}  h6 {[%clk 0:02:28]} 12. Re1 {[%clk 0:02:49]}  Be6 {[%clk 0:02:28]} 13. Ne5 {[%clk 0:02:46]}  Nxe5 {[%clk 0:02:25]} 14. Bxe5 {[%clk 0:02:47]}  Rc8 {[%clk 0:02:25]} 15. Ne2 {[%clk 0:02:38]}  Bd6 {[%clk 0:02:22]} 16. Bxd6 {[%clk 0:02:33]}  Qxd6 {[%clk 0:02:23]} 17. Nd4 {[%clk 0:02:29]}  Bd7 {[%clk 0:02:21]} 18. c3 {[%clk 0:02:22]}  Rfe8 {[%clk 0:02:20]} 19. Qf3 {[%clk 0:02:14]}  Rxe1+ {[%clk 0:02:11]} 20. Rxe1 {[%clk 0:02:15]}  Re8 {[%clk 0:02:11]} 21. Rxe8+ {[%clk 0:02:14]}  Bxe8 {[%clk 0:02:12]} 22. Qe2 {[%clk 0:02:11]}  Bd7 {[%clk 0:02:10]} 23. Bf5 {[%clk 0:02:00]}  Bxf5 {[%clk 0:01:23]} 24. Nxf5 {[%clk 0:02:01]}  Qe6 {[%clk 0:01:24]} 25. Nd4 {[%clk 0:02:01]}  Qxe2 {[%clk 0:00:54]} 26. Nxe2 {[%clk 0:02:02]}  Kf8 {[%clk 0:00:54]} 27. Nd4 {[%clk 0:02:01]}  g6 {[%clk 0:00:52]} 28. f3 {[%clk 0:02:01]}  Ke7 {[%clk 0:00:52]} 29. Kf2 {[%clk 0:02:02]}  Kd6 {[%clk 0:00:53]} 30. g4 {[%clk 0:02:01]}  Nd7 {[%clk 0:00:48]} 31. Ke3 {[%clk 0:01:56]}  Ne5 {[%clk 0:00:48]} 32. b3 {[%clk 0:01:55]}  Nd7 {[%clk 0:00:35]} 33. f4 {[%clk 0:01:54]}  Nc5 {[%clk 0:00:30]} 34. h4 {[%clk 0:01:48]}  Ne4 {[%clk 0:00:18]} 35. c4 {[%clk 0:01:33]}  Nf6 {[%clk 0:00:18]} 36. g5 {[%clk 0:01:21]}  hxg5 {[%clk 0:00:19]} 37. fxg5 {[%clk 0:01:19]}  Nd7 {[%clk 0:00:18]} 38. Nf3 {[%clk 0:00:50]}  dxc4 {[%clk 0:00:18]} 39. bxc4 {[%clk 0:00:50]}  Ne5 {[%clk 0:00:14]} 40. Nd2 {[%clk 0:00:41]}  Kc5 {[%clk 0:00:12]} 41. Ke4 {[%clk 0:00:41]}  Nxc4 {[%clk 0:00:12]} 42. Nxc4 {[%clk 0:00:28]}  Kxc4 {[%clk 0:00:13]} 43. Ke5 {[%clk 0:00:29]}  b5 {[%clk 0:00:14]} 44. Kf6 {[%clk 0:00:29]}  a5 {[%clk 0:00:15]} 45. Kxf7 {[%clk 0:00:30]}  b4 {[%clk 0:00:15]} 46. Kxg6 {[%clk 0:00:30]}  a4 {[%clk 0:00:16]} 47. h5 {[%clk 0:00:28]}  b3 {[%clk 0:00:17]} 48. axb3+ {[%clk 0:00:23]}  axb3 {[%clk 0:00:18]} 49. h6 {[%clk 0:00:23]}  b2 {[%clk 0:00:19]} 50. h7 {[%clk 0:00:23]}  b1=Q+ {[%clk 0:00:20]} 51. Kh6 {[%clk 0:00:22]}  Qh1+ {[%clk 0:00:19]} 52. Kg7 {[%clk 0:00:22]}  Qb7+ {[%clk 0:00:19]} 53. Kg8 {[%clk 0:00:22]}  Qc8+ {[%clk 0:00:19]} 54. Kg7 {[%clk 0:00:23]}  Qd7+ {[%clk 0:00:20]} 55. Kg8 {[%clk 0:00:23]}  Qe8+ {[%clk 0:00:20]} 56. Kg7 {[%clk 0:00:24]}  Qe7+ {[%clk 0:00:21]} 57. Kg8 {[%clk 0:00:24]}  Qxg5+ {[%clk 0:00:21]} 58. Kf7 {[%clk 0:00:25]}  Qh6 {[%clk 0:00:19]} 59. Kg8 {[%clk 0:00:25]}  Qg6+ {[%clk 0:00:20]} 60. Kh8 {[%clk 0:00:24]}  Qe8+ {[%clk 0:00:19]} 61. Kg7 {[%clk 0:00:25]}  Qe7+ {[%clk 0:00:20]} 62. Kg8 {[%clk 0:00:25]}  Qe6+ {[%clk 0:00:19]} 63. Kg7 {[%clk 0:00:26]}  Qg4+ {[%clk 0:00:18]} 64. Kf8 {[%clk 0:00:25]}  Qh5 {[%clk 0:00:18]} 65. Kg8 {[%clk 0:00:25]}  Qg5+ {[%clk 0:00:18]} 66. Kf8 {[%clk 0:00:25]}  Qh6+ {[%clk 0:00:16]} 67. Kg8 {[%clk 0:00:25]}  Qg6+ {[%clk 0:00:16]} 68. Kh8 {[%clk 0:00:25]}  Qf7 {[%clk 0:00:11]} 1/2-1/2


[Site "https://www.chess.com"]

[Event "Titled Tuesday Blitz August 22 Late 2023"]
[White "Sala, Giulia"]
[Black "Estrada Nieto, Julian"]
[WhiteFideId "2840451"]
[BlackFideId "5101018"]
[WhiteElo "2340"]
[BlackElo "2539"]
[Result "0-1"]
[Round "7"]
[TimeControl "180+1"]
[Date "2023.08.22"]
[WhiteClock "0:00:00"]
[BlackClock "0:00:03"]
[Board "70"]

1. e4 {[%clk 0:02:53]}  e5 {[%clk 0:02:59]} 2. Nf3 {[%clk 0:02:52]}  Nc6 {[%clk 0:03:00]} 3. Bb5 {[%clk 0:02:52]}  a6 {[%clk 0:03:00]} 4. Ba4 {[%clk 0:02:52]}  Nf6 {[%clk 0:03:00]} 5. O-O {[%clk 0:02:41]}  Be7 {[%clk 0:03:00]} 6. Re1 {[%clk 0:02:40]}  b5 {[%clk 0:03:00]} 7. Bb3 {[%clk 0:02:40]}  d6 {[%clk 0:03:00]} 8. c3 {[%clk 0:02:39]}  O-O {[%clk 0:03:00]} 9. h3 {[%clk 0:02:39]}  Bb7 {[%clk 0:02:59]} 10. d4 {[%clk 0:02:38]}  Re8 {[%clk 0:02:58]} 11. c4 {[%clk 0:02:30]}  Na5 {[%clk 0:02:31]} 12. cxb5 {[%clk 0:02:23]}  Nxe4 {[%clk 0:02:15]} 13. bxa6 {[%clk 0:02:10]}  Rxa6 {[%clk 0:01:58]} 14. dxe5 {[%clk 0:01:57]}  Nxb3 {[%clk 0:01:56]} 15. Qxb3 {[%clk 0:01:57]}  Nc5 {[%clk 0:01:50]} 16. Qc2 {[%clk 0:01:51]}  Bxf3 {[%clk 0:01:48]} 17. gxf3 {[%clk 0:01:46]}  Qa8 {[%clk 0:01:43]} 18. Nd2 {[%clk 0:01:29]}  Rxa2 {[%clk 0:01:37]} 19. Rxa2 {[%clk 0:01:28]}  Qxa2 {[%clk 0:01:37]} 20. exd6 {[%clk 0:01:29]}  cxd6 {[%clk 0:01:35]} 21. Nc4 {[%clk 0:01:25]}  Qa8 {[%clk 0:01:30]} 22. Bf4 {[%clk 0:01:20]}  Ne6 {[%clk 0:01:18]} 23. Bxd6 {[%clk 0:01:03]}  Qxf3 {[%clk 0:01:16]} 24. Bxe7 {[%clk 0:00:43]}  Rxe7 {[%clk 0:01:02]} 25. Ne5 {[%clk 0:00:41]}  Qa8 {[%clk 0:00:51]} 26. Nxf7 {[%clk 0:00:36]}  Nf4 {[%clk 0:00:38]} 27. Nh6+ {[%clk 0:00:19]}  gxh6 {[%clk 0:00:37]} 28. Qc4+ {[%clk 0:00:17]}  Re6 {[%clk 0:00:34]} 29. f3 {[%clk 0:00:13]}  Qxf3 {[%clk 0:00:25]} 30. Qc8+ {[%clk 0:00:13]}  Kg7 {[%clk 0:00:22]} 31. Qd7+ {[%clk 0:00:13]}  Kf6 {[%clk 0:00:18]} 32. Rxe6+ {[%clk 0:00:12]}  Nxe6 {[%clk 0:00:16]} 33. Qxh7 {[%clk 0:00:10]}  Qg3+ {[%clk 0:00:15]} 34. Kf1 {[%clk 0:00:10]}  Qxh3+ {[%clk 0:00:15]} 35. Ke1 {[%clk 0:00:10]}  Qg3+ {[%clk 0:00:15]} 36. Kd1 {[%clk 0:00:10]}  Qg4+ {[%clk 0:00:15]} 37. Kd2 {[%clk 0:00:09]}  Qf4+ {[%clk 0:00:14]} 38. Kd1 {[%clk 0:00:08]}  Qf3+ {[%clk 0:00:12]} 39. Kd2 {[%clk 0:00:08]}  Qd5+ {[%clk 0:00:11]} 40. Kc3 {[%clk 0:00:08]}  Qc5+ {[%clk 0:00:10]} 41. Kd2 {[%clk 0:00:06]}  Qb4+ {[%clk 0:00:09]} 42. Kc1 {[%clk 0:00:05]}  Qf4+ {[%clk 0:00:09]} 43. Kd1 {[%clk 0:00:06]}  Qg5 {[%clk 0:00:06]} 44. Qh8+ {[%clk 0:00:05]}  Qg7 {[%clk 0:00:04]} 45. Qb8 {[%clk 0:00:06]}  Qg4+ {[%clk 0:00:03]} 46. Kc1 {[%clk 0:00:06]}  Qf4+ {[%clk 0:00:02]} 47. Qxf4+ {[%clk 0:00:07]}  Nxf4 {[%clk 0:00:03]} 48. b4 {[%clk 0:00:07]}  Nd5 {[%clk 0:00:03]} 49. Kc2 {[%clk 0:00:08]}  Ke5 {[%clk 0:00:03]} 50. Kb3 {[%clk 0:00:09]}  h5 {[%clk 0:00:04]} 51. b5 {[%clk 0:00:10]}  h4 {[%clk 0:00:04]} 52. Kc4 {[%clk 0:00:11]}  h3 {[%clk 0:00:03]} 53. Kc5 {[%clk 0:00:11]}  h2 {[%clk 0:00:03]} 54. Kc6 {[%clk 0:00:00]}  h1=Q {[%clk 0:00:03]} 0-1


[Site "https://www.chess.com"]

[Event "Titled Tuesday Blitz August 22 Late 2023"]
[White "Mekhitarian, Krikor Sevag"]
[Black "Andrews, Todd"]
[WhiteFideId "2107660"]
[BlackFideId "2012456"]
[WhiteElo "2832"]
[BlackElo "2389"]
[Result "1-0"]
[Round "7"]
[TimeControl "180+1"]
[Date "2023.08.22"]
[WhiteClock "0:00:12"]
[BlackClock "0:00:23"]
[Board "71"]

1. Nf3 {[%clk 0:03:00]}  Nf6 {[%clk 0:02:59]} 2. c4 {[%clk 0:03:01]}  g6 {[%clk 0:02:57]} 3. Nc3 {[%clk 0:03:01]}  Bg7 {[%clk 0:02:57]} 4. e4 {[%clk 0:03:01]}  d6 {[%clk 0:02:57]} 5. d4 {[%clk 0:03:02]}  O-O {[%clk 0:02:57]} 6. h3 {[%clk 0:03:03]}  e5 {[%clk 0:02:51]} 7. d5 {[%clk 0:03:01]}  a5 {[%clk 0:02:51]} 8. g4 {[%clk 0:02:58]}  Na6 {[%clk 0:02:51]} 9. Be3 {[%clk 0:02:56]}  Nd7 {[%clk 0:02:46]} 10. a3 {[%clk 0:02:55]}  b6 {[%clk 0:02:25]} 11. Rg1 {[%clk 0:02:52]}  Nac5 {[%clk 0:02:11]} 12. b4 {[%clk 0:02:32]}  axb4 {[%clk 0:02:11]} 13. axb4 {[%clk 0:02:33]}  Rxa1 {[%clk 0:02:11]} 14. Qxa1 {[%clk 0:02:34]}  Nb3 {[%clk 0:02:03]} 15. Qd1 {[%clk 0:02:33]}  Nd4 {[%clk 0:02:02]} 16. Nxd4 {[%clk 0:02:34]}  exd4 {[%clk 0:02:03]} 17. Bxd4 {[%clk 0:02:34]}  Bxd4 {[%clk 0:02:02]} 18. Qxd4 {[%clk 0:02:34]}  Re8 {[%clk 0:01:59]} 19. Rg3 {[%clk 0:02:27]}  Qg5 {[%clk 0:01:56]} 20. Qd2 {[%clk 0:02:18]}  Qf6 {[%clk 0:01:46]} 21. g5 {[%clk 0:02:13]}  Qg7 {[%clk 0:01:42]} 22. f4 {[%clk 0:02:07]}  f5 {[%clk 0:01:42]} 23. Re3 {[%clk 0:01:54]}  Nf8 {[%clk 0:01:16]} 24. Kf2 {[%clk 0:01:44]}  h6 {[%clk 0:01:05]} 25. h4 {[%clk 0:01:40]}  hxg5 {[%clk 0:01:05]} 26. hxg5 {[%clk 0:01:38]}  Qh7 {[%clk 0:00:55]} 27. Kg1 {[%clk 0:01:33]}  Qh4 {[%clk 0:00:53]} 28. Qf2 {[%clk 0:01:31]}  Qg4+ {[%clk 0:00:47]} 29. Qg3 {[%clk 0:01:09]}  Qxg3+ {[%clk 0:00:45]} 30. Rxg3 {[%clk 0:01:10]}  fxe4 {[%clk 0:00:46]} 31. Re3 {[%clk 0:01:10]}  Bf5 {[%clk 0:00:43]} 32. Bg2 {[%clk 0:01:11]}  Nd7 {[%clk 0:00:36]} 33. Nxe4 {[%clk 0:01:06]}  Kg7 {[%clk 0:00:34]} 34. Kf2 {[%clk 0:01:05]}  Bxe4 {[%clk 0:00:33]} 35. Rxe4 {[%clk 0:01:04]}  Rxe4 {[%clk 0:00:30]} 36. Bxe4 {[%clk 0:01:05]}  b5 {[%clk 0:00:27]} 37. cxb5 {[%clk 0:01:04]}  Nb6 {[%clk 0:00:28]} 38. Ke3 {[%clk 0:01:03]}  Nc4+ {[%clk 0:00:28]} 39. Kd4 {[%clk 0:01:02]}  Nb6 {[%clk 0:00:26]} 40. Bf3 {[%clk 0:00:55]}  Kf7 {[%clk 0:00:26]} 41. Bg4 {[%clk 0:00:55]}  Na4 {[%clk 0:00:25]} 42. Be6+ {[%clk 0:00:54]}  Ke7 {[%clk 0:00:25]} 43. Bg4 {[%clk 0:00:46]}  Nb6 {[%clk 0:00:25]} 44. Bd1 {[%clk 0:00:46]}  Nd7 {[%clk 0:00:24]} 45. Bc2 {[%clk 0:00:40]}  Kf7 {[%clk 0:00:25]} 46. b6 {[%clk 0:00:38]}  Nxb6 {[%clk 0:00:25]} 47. Be4 {[%clk 0:00:37]}  Kg7 {[%clk 0:00:24]} 48. b5 {[%clk 0:00:31]}  Kf7 {[%clk 0:00:24]} 49. Kc3 {[%clk 0:00:30]}  Kg7 {[%clk 0:00:22]} 50. Kb4 {[%clk 0:00:29]}  Kf7 {[%clk 0:00:22]} 51. Ka5 {[%clk 0:00:28]}  Nc4+ {[%clk 0:00:22]} 52. Ka6 {[%clk 0:00:29]}  Nd2 {[%clk 0:00:22]} 53. Bd3 {[%clk 0:00:20]}  Nb3 {[%clk 0:00:20]} 54. Kb7 {[%clk 0:00:08]}  Nc5+ {[%clk 0:00:20]} 55. Kxc7 {[%clk 0:00:09]}  Nxd3 {[%clk 0:00:21]} 56. b6 {[%clk 0:00:10]}  Nc5 {[%clk 0:00:18]} 57. b7 {[%clk 0:00:09]}  Na6+ {[%clk 0:00:18]} 58. Kc8 {[%clk 0:00:07]}  Ke7 {[%clk 0:00:18]} 59. b8=Q {[%clk 0:00:07]}  Nxb8 {[%clk 0:00:18]} 60. Kxb8 {[%clk 0:00:08]}  Kd7 {[%clk 0:00:19]} 61. Kb7 {[%clk 0:00:08]}  Kd8 {[%clk 0:00:19]} 62. Kc6 {[%clk 0:00:09]}  Ke7 {[%clk 0:00:20]} 63. Kc7 {[%clk 0:00:10]}  Ke8 {[%clk 0:00:20]} 64. Kxd6 {[%clk 0:00:11]}  Kf7 {[%clk 0:00:21]} 65. Kd7 {[%clk 0:00:11]}  Kf8 {[%clk 0:00:21]} 66. Ke6 {[%clk 0:00:11]}  Kg7 {[%clk 0:00:21]} 67. d6 {[%clk 0:00:12]}  Kf8 {[%clk 0:00:22]} 68. d7 {[%clk 0:00:12]}  Kg7 {[%clk 0:00:22]} 69. d8=Q {[%clk 0:00:12]}  Kh7 {[%clk 0:00:23]} 70. Qe7+ {[%clk 0:00:12]}  Kg8 {[%clk 0:00:23]} 71. Kf6 {[%clk 0:00:12]}  Kh8 {[%clk 0:00:23]} 72. Qg7# {[%clk 0:00:12]} 1-0


[Site "https://www.chess.com"]